lending/lending_fUSD_20240830
["ID","MTS","AMOUNT","RATE_DAILY","PERIOD"]
[336639328,1724992927475,730.34476722,0.000109,2]
[336639329,1724992942887,159.5,0.00010637,2]
[336639357,1724993005624,169.14363358,0.000109,2]
[336639359,1724993012261,500.0,0.00010912,2]
[336639361,1724993016697,162.43287432,0.000109,2]
[336639362,1724993021114,169.75,0.00010495,2]
[336639363,1724993037427,5116.07,0.00010495,2]
[336639366,1724993044516,250.0,0.00010495,2]
[336639378,1724993062682,486.89651148,0.000109,2]
[336639379,1724993063259,174.67,0.00010535,2]
[336639382,1724993110597,150.0,0.00010959,2]
[336639383,1724993200425,324.59767432,0.000109,2]
[336639384,1724993209989,409.92,0.00010647,2]
[336639385,1724993220914,169.14363358,0.000109,2]
[336639387,1724993232000,169.15,0.00010959,2]
[336639388,1724993287123,250.0,0.00010959,2]
[336639398,1724993335617,216.39844954,0.000109,2]
[336639399,1724993344800,160.0,8.518e-05,2]
[336639400,1724993370119,671.15,8.595e-05,2]
[336639401,1724993370330,671.15,0.00010859,2]
[336639402,1724993401125,250.0,0.00010513,2]
[336639404,1724993431735,-300.0,0.00010989,2]
[336639405,1724993431744,-553.22254974,0.00010989,2]
[336639406,1724993431753,-603.56800117,0.0001099,2]
[336639407,1724993431845,-3266.87499944,0.0001099,2]
[336639408,1724993431855,-430.0,0.0001099,2]
[336639409,1724993431864,-1000.0,0.0001099,2]
[336639410,1724993431872,-106.41224808,0.0001099,2]
[336639411,1724993431906,-261.62593304,0.0001099,2]
[336639412,1724993431962,-631.96181888,0.0001099,2]
[336639413,1724993431971,-1021.0,0.0001099,2]
[336639414,1724993432309,-1052.52871465,0.0001099,2]
[336639419,1724993437889,-285.763033,0.0001099,2]
[336639420,1724993437900,-700.54689836,0.0001099,2]
[336639421,1724993437911,-433.94452558,0.0001099,2]
[336639422,1724993437922,-364.0,0.0001099,2]
[336639423,1724993437934,-312.03299131,0.0001099,2]
[336639424,1724993437943,-158.80044504,0.00010997,2]
[336639425,1724993437954,-550.47657266,0.00010997,2]
[336639426,1724993437967,-380.0,0.00010997,2]
[336639427,1724993437980,-7261.62417977,0.00010997,2]
[336639428,1724993437989,-150.0,0.00010999,2]
[336639429,1724993437999,-20402.577,0.00011,2]
[336639430,1724993438010,-45037.4623791,0.00011,2]
[336639431,1724993438023,-140533.99345,0.00011,2]
[336639432,1724993438058,-305705.33866564,0.00011,2]
[336639433,1724993438069,-296752.47023105,0.00011,2]
[336639434,1724993438080,-3248848.64766251,0.00011,2]
[336639435,1724993438116,-5041.6,0.00011,2]
[336639436,1724993438127,-329.51681176,0.00011,2]
[336639437,1724993438203,-663.2,0.00011,2]
[336639438,1724993438215,-2512.66826827,0.00011,2]
[336639439,1724993438226,-1263.64999998,0.00011,2]
[336639441,1724993438240,-2510.72,0.00011,2]
[336639443,1724993438252,-6726.37280016,0.00011,2]
[336639613,1724993440114,-1609.12510539,0.00011,2]
[336639615,1724993440127,-397.63098387,0.00011,2]
[336639617,1724993440140,-370.12127459,0.00011,2]
[336639619,1724993440151,-84567.13992091,0.00011,2]
[336639622,1724993440161,-8821.75096878,0.00011,2]
[336639624,1724993440178,-28500.0,0.00011,2]
[336639626,1724993440189,-703.655,0.00011,2]
[336639628,1724993440201,-449.41195977,0.00011,2]
[336639630,1724993440212,-661.0,0.00011,2]
[336639632,1724993440223,-1931.38144578,0.00011,2]
[336639634,1724993440235,-706.04,0.00011,2]
[336639636,1724993440247,-111855.72390297,0.00011,2]
[336639638,1724993440259,-19375.68017879,0.00011,2]
[336639640,1724993440271,-6309.1,0.00011,2]
[336639643,1724993440282,-65220.33347668,0.00011,2]
[336639645,1724993440294,-5000.00000003,0.00011,2]
[336639647,1724993440305,-9521.59992865,0.00011,2]
[336639649,1724993440316,-266.16769128,0.00011,2]
[336639651,1724993440327,-415.1,0.00011,2]
[336639653,1724993440338,-376.65390177,0.00011,2]
[336639655,1724993440349,-1705.11928477,0.00011,2]
[336639657,1724993440364,-516.437086,0.00011,2]
[336639899,1724993442806,-296.13443335,0.00011,2]
[336640039,1724993444111,-640.224,0.00011,2]
[336640041,1724993444125,-394.58101345,0.00011,2]
[336640044,1724993444137,-592.3999995,0.00011,2]
[336640046,1724993444149,-583.70166492,0.00011,2]
[336640048,1724993444160,-707.3898016,0.00011,2]
[336640050,1724993444172,-2126.874996,0.00011,2]
[336640052,1724993444183,-12175.6,0.00011,2]
[336640054,1724993444194,-1732.88242047,0.00011,2]
[336640056,1724993444205,-604.07802196,0.00011,2]
[336640059,1724993444217,-635.8192291,0.00011,2]
[336640061,1724993444228,-1388.82081271,0.00011,2]
[336640146,1724993445161,-3079.99995,0.00011,2]
[336640148,1724993445173,-5626.523833,0.00011,2]
[336640150,1724993445184,-2421.6,0.00011,2]
[336640152,1724993445195,-430.65367495,0.00011,2]
[336640154,1724993445208,-25007.0,0.00011,2]
[336640156,1724993445219,-865830.38098504,0.00011,2]
[336640159,1724993445231,-1305.44995977,0.00011,2]
[336640161,1724993445243,-7707.22865925,0.00011,2]
[336640163,1724993445254,-1123.31384971,0.00011,2]
[336640212,1724993445750,-335.60142443,0.00011,2]
[336640214,1724993445761,-3639.78684173,0.00011,2]
[336640216,1724993445772,-970.74420354,0.00011,2]
[336640218,1724993445783,-353.68141749,0.00011,2]
[336640222,1724993445813,-663.02749647,0.00011,2]
[336640224,1724993445824,-1370.5674735,0.00011,2]
[336640226,1724993445834,-62003.14113327,0.00011,2]
[336640232,1724993445879,-500.0,0.00011,2]
[336640238,1724993445934,-4017.62324958,0.00011,2]
[336640240,1724993445946,-748.82902201,0.00011,2]
[336640242,1724993445957,-275.5687984,0.00011,2]
[336640245,1724993445970,-18489.299042,0.00011,2]
[336640247,1724993445985,-473.16872116,0.00011,2]
[336640249,1724993446000,-78658.03237406,0.00011,2]
[336640252,1724993446012,-2402.67690418,0.00011,2]
[336640254,1724993446023,-381.90127248,0.00011,2]
[336640256,1724993446033,-9031.66202196,0.00011,2]
[336640259,1724993446062,-2983.5989,0.00011,2]
[336640261,1724993446073,-336.21587999,0.00011,2]
[336640263,1724993446084,-573.43013765,0.00011,2]
[336640265,1724993446095,-3765.69953211,0.00011,2]
[336640267,1724993446106,-1613.48867776,0.00011,2]
[336640544,1724993461335,718.3116,0.000109,2]
[336640545,1724993469042,7500.0,0.000109,2]
[336640546,1724993486633,293.479,0.000109,2]
[336640548,1724993520413,345.36063455,0.000109,2]
[336640549,1724993533591,171.17415423,0.000109,2]
[336640550,1724993542901,250.0,0.00010472,2]
[336640551,1724993556002,174.67,0.0001046,2]
[336640552,1724993694055,13393.168,0.000109,2]
[336640553,1724993697380,4106.8970593,0.000109,2]
[336640554,1724993747091,430.15103,0.0001095,2]
[336640555,1724993794184,1151.0958,0.000109,2]
[336640556,1724993794696,1005.0,0.000109,2]
[336640557,1724993812371,12501.421,0.000109,2]
[336640559,1724993832600,5129.25538966,0.000109,2]
[336640560,1724993855484,4746.2377,0.000109,2]
[336640561,1724993873836,1000.0,0.0001037,2]
[336640562,1724993946015,250.0,0.0001039,2]
[336640563,1724993951505,633.6,8.472e-05,2]
[336640564,1724993951735,633.6,0.00010736,2]
[336640565,1724993960784,156.88,0.00010959,2]
[336640567,1724993968081,3419.50359312,0.000109,2]
[336640568,1724993970785,250.0,0.00010959,2]
[336640569,1724993974232,2500.0,0.000109,2]
[336640570,1724993974556,2500.0,0.000109,2]
[336640571,1724994034678,263.14125642,0.000109,2]
[336640572,1724994052654,430.15102,0.0001094,2]
[336640573,1724994052773,162.25937,0.0001095,2]
[336640574,1724994070091,250.0,0.00010435,2]
[336640575,1724994077997,500.0,0.000109,2]
[336640576,1724994078910,500.0,0.000109,2]
[336640577,1724994079266,500.0,0.000109,2]
[336640578,1724994079602,500.0,0.000109,2]
[336640579,1724994079968,500.0,0.000109,2]
[336640580,1724994080288,500.0,0.000109,2]
[336640581,1724994080646,500.0,0.000109,2]
[336640582,1724994080986,500.0,0.000109,2]
[336640583,1724994081313,500.0,0.000109,2]
[336640584,1724994081659,500.0,0.000109,2]
[336640585,1724994081981,500.0,0.000109,2]
[336640586,1724994082308,500.0,0.000109,2]
[336640587,1724994082644,500.0,0.000109,2]
[336640588,1724994083007,500.0,0.000109,2]
[336640589,1724994083335,500.0,0.000109,2]
[336640590,1724994083654,500.0,0.000109,2]
[336640591,1724994083989,500.0,0.000109,2]
[336640592,1724994084996,500.0,0.000109,2]
[336640593,1724994085909,500.0,0.000109,2]
[336640594,1724994086800,500.0,0.000109,2]
[336640595,1724994087145,500.0,0.000109,2]
[336640596,1724994087466,500.0,0.000109,2]
[336640597,1724994088075,500.0,0.000109,2]
[336640598,1724994088427,500.0,0.000109,2]
[336640599,1724994089035,500.0,0.000109,2]
[336640600,1724994089661,500.0,0.000109,2]
[336640601,1724994089701,500.0,0.000109,2]
[336640602,1724994089741,500.0,0.000109,2]
[336640603,1724994090618,500.0,0.000109,2]
[336640604,1724994090948,516.0,0.000109,2]
[336640605,1724994094690,830.93,0.00010959,2]
[336640606,1724994103425,295.19,0.00010395,2]
[336640607,1724994107309,2279.66906208,0.000109,2]
[336640608,1724994109461,247.9946,0.000109,2]
[336640609,1724994185114,170.47038926,0.000109,2]
[336640610,1724994218186,200.0,0.00010959,2]
[336640612,1724994242547,1519.77937472,0.000109,2]
[336640613,1724994295855,2000.0,0.00010959,2]
[336640614,1724994351141,200.0,0.00010392,2]
[336640615,1724994357865,430.15102,0.0001094,2]
[336640616,1724994358119,430.15103,0.000109,2]
[336640617,1724994361155,150.0,0.00010959,2]
[336640618,1724994380509,1013.1862498,0.000109,2]
[336640619,1724994403614,197.61,0.00010959,2]
[336640620,1724994457115,-895.14327581,0.00010976,2]
[336640621,1724994457137,-430.15103,0.0001098,2]
[336640622,1724994457159,-1984.99338653,0.0001099,2]
[336640623,1724994457181,-651.293,0.0001099,2]
[336640624,1724994457203,-300.0,0.00010992,2]
[336640625,1724994457225,-623.077,0.00010995,2]
[336640626,1724994457248,-1052.221,0.00010995,2]
[336640627,1724994457269,-804.0,0.00010995,2]
[336640628,1724994457291,-150.0,0.00010995,2]
[336640629,1724994457609,-13459.0,0.00010996,2]
[336640630,1724994457634,-1144.0,0.00010996,2]
[336640631,1724994457658,-1078.0,0.00010996,2]
[336640632,1724994457680,-3390.49701459,0.00010997,2]
[336640633,1724994457702,-308.12744,0.00010999,2]
[336640634,1724994457726,-6490.89,0.00010999,2]
[336640635,1724994457747,-41614.60685307,0.00010999,2]
[336640636,1724994484943,236.82713076,0.000109,2]
[336640637,1724994487965,250.0,0.00010488,2]
[336640638,1724994498086,598.9,8.57e-05,2]
[336640639,1724994498463,598.9,0.00010834,2]
[336640640,1724994504859,4411.13,0.00010959,2]
[336640641,1724994517729,3852.43522141,0.000109,2]
[336640642,1724994526574,-500.0,0.00010973,2]
[336640643,1724994526597,-500.0,0.00010973,2]
[336640644,1724994526622,-300.0,0.00010998,2]
[336640645,1724994526646,-1301.0,0.00010999,2]
[336640646,1724994539922,175.95,0.00010959,2]
[336640647,1724994572677,593.3,0.00010959,2]
[336640648,1724994573596,250.0,0.00010518,2]
[336640649,1724994594544,159.51,0.00010518,2]
[336640656,1724994632382,-334.09674567,0.00010999,2]
[336640658,1724994632394,-1602.76914189,0.00010999,2]
[336640659,1724994632413,-439.35,0.00010999,2]
[336640660,1724994632425,-1517.42729465,0.00010999,2]
[336640661,1724994632441,-622.0,0.00010999,2]
[336640662,1724994632453,-3729.79162755,0.00010999,2]
[336640663,1724994632461,-1914.85701943,0.00010999,2]
[336640664,1724994632473,-1075.9549519,0.00010999,2]
[336640665,1724994632486,-472.5111756,0.00010999,2]
[336640666,1724994632495,-499.99,0.00010999,2]
[336640667,1724994632504,-150.0,0.00010999,2]
[336640668,1724994632513,-500.0,0.00010999,2]
[336640669,1724994632524,-497.71370419,0.00010999,2]
[336640670,1724994632535,-500.0,0.00010999,2]
[336640671,1724994632543,-874.55464524,0.00011,2]
[336640672,1724994632554,-421.55839924,0.00011,2]
[336640673,1724994632565,-1230.78807392,0.00011,2]
[336640674,1724994632578,-268.07010932,0.00011,2]
[336640675,1724994632589,-623.10877228,0.00011,2]
[336640676,1724994632598,-755.18700174,0.00011,2]
[336640677,1724994632610,-152.31299826,0.00011,2]
[336640678,1724994632619,-125.19580716,0.00011,2]
[336640679,1724994632630,-397.80419284,0.00011,2]
[336640680,1724994632639,-150.99,0.00011,2]
[336640681,1724994632651,-398.083,0.00011,2]
[336640682,1724994632660,-932.97509266,0.00011,2]
[336640683,1724994632676,-860.06877526,0.00011,2]
[336640684,1724994632688,-1875.21575666,0.00011,2]
[336640685,1724994632700,-62.74037542,0.00011,2]
[336640686,1724994632710,-5940.551,0.00011,2]
[336640687,1724994632719,-1144.0,0.00011,2]
[336640688,1724994632728,-12060.25416781,0.00011,2]
[336640689,1724994632740,-351.96,0.00011,2]
[336640690,1724994632752,-1046.78583219,0.00011,2]
[336640691,1724994632761,-2757.62891033,0.00011,2]
[336640692,1724994632961,-10.23130978,0.00011,2]
[336640693,1724994632973,-939.82724979,0.00011,2]
[336640694,1724994632985,-3955.96712328,0.00011,2]
[336640695,1724994632997,-459.49099162,0.00011,2]
[336640696,1724994637996,-561.82928208,0.00011,2]
[336640697,1724994638007,-34677.686,0.00011,2]
[336640698,1724994638055,-582.24356216,0.00011,2]
[336640699,1724994638068,-2200.03350926,0.00011,2]
[336640700,1724994638111,-3040.02314876,0.00011,2]
[336640701,1724994638122,-351.92,0.00011,2]
[336640702,1724994638134,-1553.4252,0.00011,2]
[336640703,1724994638149,-744.74833634,0.00011,2]
[336640704,1724994638170,-698.46349581,0.00011,2]
[336640705,1724994638181,-423.10202108,0.00011,2]
[336640706,1724994638282,-526800.78438326,0.00011,2]
[336640707,1724994638292,-303.374,0.00011,2]
[336640708,1724994638302,-4177323.84753931,0.00011,2]
[336640709,1724994638313,-92769.30290283,0.00011,2]
[336640710,1724994638322,-2631.58,0.00011,2]
[336640711,1724994638332,-1098.0,0.00011,2]
[336640712,1724994638343,-534.1715545,0.00011,2]
[336640713,1724994638355,-12401.6194352,0.00011,2]
[336640714,1724994638366,-4209.4109171,0.00011,2]
[336640715,1724994638375,-212.85908891,0.00011,2]
[336640716,1724994638384,-425.27,0.00011,2]
[336640717,1724994638393,-14668.6391354,0.00011032,2]
[336640719,1724994638403,-20406.0,0.0001104,3]
[336640721,1724994638412,-150.99,0.0001104,2]
[336640722,1724994638422,-455.0,0.00011089,2]
[336640723,1724994638431,-299.99,0.00011089,2]
[336640724,1724994638440,-9999.99,0.00011089,2]
[336640725,1724994638450,-347.27,0.00011089,2]
[336640727,1724994638460,-455.0,0.000111,2]
[336640729,1724994638469,-499.99,0.000111,2]
[336640731,1724994638479,-1158.15,0.000111,2]
[336640733,1724994638488,-1084.6,0.000111,2]
[336640735,1724994638497,-999.99,0.000111,2]
[336640737,1724994638507,-150.0,0.00011155,2]
[336640739,1724994638516,-1000.0,0.00011182,2]
[336640740,1724994638525,-1000.0,0.00011182,2]
[336640742,1724994638534,-1000.0,0.00011182,2]
[336640744,1724994638544,-1009.0,0.00011182,2]
[336640746,1724994638553,-1000.0,0.00011211,2]
[336640748,1724994638563,-1000.0,0.00011211,2]
[336640750,1724994638572,-1000.0,0.00011211,2]
[336640752,1724994638581,-1000.0,0.00011211,2]
[336640754,1724994638591,-1000.0,0.00011211,2]
[336640756,1724994638600,-1000.0,0.00011211,2]
[336640758,1724994638610,-1000.0,0.00011211,2]
[336640760,1724994638619,-1000.0,0.00011211,2]
[336640762,1724994638629,-1000.0,0.00011211,2]
[336640764,1724994638638,-1000.0,0.00011211,2]
[336640766,1724994638648,-1013.0,0.00011211,2]
[336640768,1724994638658,-302.77,0.00011211,2]
[336640770,1724994638667,-257.2,0.00011211,2]
[336640772,1724994638676,-206.18,0.00011211,2]
[336640773,1724994638687,-622.43,0.00011211,2]
[336640775,1724994638698,-500.0,0.00011211,2]
[336640777,1724994638708,-500.0,0.00011211,2]
[336640813,1724994639083,-500.0,0.00011211,2]
[336640817,1724994639111,-500.0,0.00011211,2]
[336640819,1724994639121,-500.0,0.00011211,2]
[336640821,1724994639130,-500.0,0.00011211,2]
[336640822,1724994639141,-500.0,0.00011211,2]
[336640824,1724994639151,-500.0,0.00011211,2]
[336640826,1724994639161,-500.0,0.00011211,2]
[336640828,1724994639171,-303.16,0.00011211,2]
[336640830,1724994639181,-500.0,0.00011211,2]
[336640832,1724994639191,-500.0,0.00011211,2]
[336640834,1724994639200,-506.54,0.00011211,2]
[336640836,1724994639210,-500.0,0.00011211,2]
[336640838,1724994639219,-500.0,0.00011211,2]
[336640840,1724994639228,-500.0,0.00011238,2]
[336640842,1724994639238,-500.0,0.00011266,2]
[336640844,1724994639248,-500.0,0.00011293,2]
[336640846,1724994639257,-500.0,0.00011321,2]
[336640848,1724994639266,-500.0,0.00011348,2]
[336640850,1724994639276,-500.0,0.00011375,2]
[336640852,1724994639286,-791.32,0.000114,2]
[336640853,1724994639295,-500.0,0.00011403,2]
[336640855,1724994639305,-500.0,0.0001143,2]
[336640857,1724994639314,-500.0,0.00011458,2]
[336640859,1724994639323,-500.0,0.00011485,2]
[336640861,1724994639333,-791.32,0.00011507,2]
[336640863,1724994639342,-500.0,0.00011512,2]
[336640864,1724994639352,-500.0,0.0001154,2]
[336640866,1724994639363,-500.0,0.00011567,2]
[336640868,1724994639372,-500.0,0.00011595,2]
[336640870,1724994639382,-686.55783304,0.00011622,2]
[336640872,1724994639392,-1000.0,0.00011666,2]
[336640874,1724994639402,-200.0,0.00011691,2]
[336640876,1724994639411,-295.19,0.00011694,2]
[336640878,1724994639420,-3300.0,0.00012,4]
[336640880,1724994639429,-238.5,0.00012,2]
[336640882,1724994639439,-250000.0,0.00012,7]
[336640884,1724994639448,-250.0,0.00012,2]
[336640886,1724994639457,-169.0,0.00012044,2]
[336640887,1724994639466,-2183.03469659,0.00012119,2]
[336640889,1724994639475,-6411.28958727,0.00012119,2]
[336640891,1724994639484,-174.67,0.00012171,2]
[336640893,1724994639494,-170.124,0.00012356,2]
[336640895,1724994639503,-1556.226,0.00012356,2]
[336640897,1724994639512,-468.791,0.00012356,2]
[336640899,1724994639522,-810.0,0.00012356,2]
[336640900,1724994639531,-236.8271307,0.00012444,2]
[336640902,1724994639540,-7767.09322441,0.00012832,2]
[336640904,1724994639549,-1000.0,0.00012962,2]
[336640906,1724994639558,-200.0,0.0001299,2]
[336640908,1724994639567,-295.19,0.00012993,2]
[336640910,1724994639577,-250.0,0.00013,2]
[336640912,1724994639586,-598.9,0.00013098,2]
[336640914,1724994639595,-170.47038921,0.00013176,2]
[336640916,1724994639605,-429.33,0.00013425,2]
[336640918,1724994639615,-240.21,0.00013425,2]
[336640920,1724994639625,-1130.37,0.00013425,2]
[336640922,1724994639634,-357.13,0.00013425,2]
[336640924,1724994639645,-152.98,0.00013425,2]
[336640925,1724994639654,-223.49,0.00013425,2]
[336640927,1724994639664,-427.12,0.00013425,2]
[336640929,1724994639673,-150.0,0.00013425,2]
[336640931,1724994639683,-357.13,0.00013425,2]
[336640933,1724994639694,-150.0,0.00013425,2]
[336640935,1724994639704,-150.0,0.00013425,2]
[336640937,1724994639714,-427.12,0.00013425,2]
[336640939,1724994639723,-357.13,0.00013425,2]
[336640940,1724994639733,-150.0,0.00013425,2]
[336640942,1724994639742,-427.12,0.00013425,2]
[336640944,1724994639752,-202.32,0.00013425,2]
[336640946,1724994639762,-1493.18825768,0.000138,2]
[336640948,1724994639772,-6200.51954796,0.000139,2]
[336640950,1724994639783,-174.67,0.0001391,2]
[336640952,1724994639792,-236.8271307,0.00013989,2]
[336640954,1724994639802,-557.0,0.0001399,2]
[336640956,1724994639811,-736.0,0.00013995,2]
[336640958,1724994639820,-3188.536,0.00014,2]
[336640959,1724994639830,-5852.0,0.00014,2]
[336640960,1724994639840,-163.344,0.00014,2]
[336640961,1724994639850,-11601.717,0.00014,2]
[336640962,1724994639859,-3300.0,0.00014,4]
[336640963,1724994639869,-2000.0,0.00014,30]
[336640964,1724994639878,-250.0,0.00014,2]
[336640965,1724994639887,-1000.0,0.00014,4]
[336640967,1724994639897,-300.0,0.00014,2]
[336640968,1724994639906,-1000.0,0.00014258,2]
[336640969,1724994639915,-200.0,0.00014289,2]
[336640970,1724994639925,-295.19,0.00014293,2]
[336640971,1724994639936,-845.05,0.00014466,2]
[336640972,1724994639946,-1725.04,0.00014466,2]
[336640973,1724994639958,-521.13161123,0.00015,7]
[336640975,1724994639968,-586.074349,0.00015,2]
[336640977,1724994639979,-250.0,0.00015,2]
[336640979,1724994639988,-2875.0,0.00015,2]
[336640981,1724994639997,-269.65625179,0.00015,14]
[336640982,1724994640006,-838.0,0.00015,2]
[336640985,1724994640021,-300.0,0.00015,5]
[336640987,1724994640030,-150.0,0.00015356,2]
[336640989,1724994640039,-447.0,0.00015356,2]
[336640991,1724994640049,-472.432,0.00015356,2]
[336640993,1724994640058,-598.9,0.00015362,2]
[336640994,1724994640067,-791.32,0.00015425,2]
[336640996,1724994640076,-791.32,0.00015425,2]
[336640998,1724994640085,-197.86,0.00015425,2]
[336641000,1724994640094,-170.47038921,0.00015452,2]
[336641002,1724994640104,-236.8271307,0.00015533,2]
[336641004,1724994640113,-1000.0,0.00015555,2]
[336641006,1724994640123,-200.0,0.00015588,2]
[336641008,1724994640132,-295.19,0.00015592,2]
[336641010,1724994640141,-174.67,0.00015649,2]
[336641012,1724994640151,-168.29,0.00015831,2]
[336641014,1724994640161,-716.04,0.00015973,2]
[336641016,1724994640170,-150.0,0.00015973,2]
[336641018,1724994640179,-150.0,0.00015973,2]
[336641020,1724994640189,-531.89,0.00015973,2]
[336641022,1724994640199,-300.27,0.00015973,2]
[336641024,1724994640208,-427.12,0.00015973,2]
[336641026,1724994640217,-531.89,0.00015973,2]
[336641028,1724994640226,-150.0,0.00015973,2]
[336641030,1724994640235,-427.12,0.00015973,2]
[336641032,1724994640244,-150.0,0.00015973,2]
[336641034,1724994640253,-531.89,0.00015973,2]
[336641035,1724994640262,-150.0,0.00015973,2]
[336641038,1724994640271,-427.12,0.00015973,2]
[336641039,1724994640280,-150.0,0.00015973,2]
[336641042,1724994640289,-150.0,0.00015973,2]
[336641043,1724994640300,-426.56,0.00015973,2]
[336641045,1724994640309,-150.0,0.00015973,2]
[336641048,1724994640319,-470.32543337,0.00016,30]
[336641050,1724994640329,-2000.0,0.00016,30]
[336641052,1724994640340,-250.0,0.00016,3]
[336641054,1724994640350,-350.0,0.00016,2]
[336641056,1724994640359,-268.0,0.0001611,2]
[336641058,1724994640368,-5406.04,0.00016438,2]
[336641059,1724994640377,-243.0,0.000167,2]
[336641061,1724994640386,-250000.0,0.00016986,2]
[336641063,1724994640395,-1000.0,0.00017,5]
[336641065,1724994640415,-236.8271307,0.00017078,2]
[336641067,1724994640424,-598.9,0.00017626,2]
[336641069,1724994640434,-170.47038921,0.00017729,2]
[336641071,1724994640443,-150.2,0.0001789,2]
[336641073,1724994640452,-1000.0,0.00018,11]
[336641075,1724994640461,-905.20281272,0.00018,18]
[336641077,1724994640470,-1000.0,0.00018,7]
[336641079,1724994640480,-400.0,0.00018,2]
[336641081,1724994640490,-243.0,0.0001812,2]
[336641083,1724994640499,-150.0,0.0001829,4]
[336641085,1724994640508,-150.0,0.00018356,2]
[336641087,1724994640517,-236.8271307,0.00018622,2]
[336641089,1724994640526,-992.31,0.000189,7]
[336641091,1724994640535,-500.0,0.00018903,2]
[336641093,1724994640545,-1800.0,0.00018903,2]
[336641095,1724994640554,-2100.0,0.00018903,2]
[336641097,1724994640563,-152.0,0.00018989,3]
[336641099,1724994640573,-1080.24,0.00019,17]
[336641101,1724994640583,-11509.45627908,0.00019,10]
[336641103,1724994640592,-152.0,0.00019444,4]
[336641105,1724994640601,-31320.66,0.000195,2]
[336641107,1724994640612,-243024.0,0.00019526,2]
[336641109,1724994640621,-243.0,0.0001955,2]
[336641111,1724994640631,-598.9,0.00019889,2]
[336641114,1724994640640,-152.0,0.000199,5]
[336641115,1724994640655,-156.88,0.00019961,2]
[336641117,1724994640665,-1800.0,0.00019999,2]
[336641119,1724994640674,-2100.0,0.00019999,2]
[336641121,1724994640683,-500.0,0.00019999,2]
[336641123,1724994640694,-1140.48,0.0002,19]
[336641125,1724994640703,-150.0,0.0002,2]
[336641127,1724994640712,-1530.5479872,0.0002,5]
[336641129,1724994640721,-2600.0,0.0002,30]
[336641131,1724994640731,-20000.0,0.0002,10]
[336641133,1724994640740,-10000.0,0.0002,10]
[336641135,1724994640749,-326.16734167,0.0002,30]
[336641137,1724994640758,-959.0,0.0002,10]
[336641139,1724994640768,-450.0,0.0002,2]
[336641141,1724994640777,-189.27787284,0.0002,2]
[336641143,1724994640786,-170.47038921,0.00020005,2]
[336641145,1724994640794,-236.8271307,0.00020167,2]
[336641147,1724994640804,-152.0,0.00020355,6]
[336641149,1724994640813,-152.0,0.00020811,7]
[336641151,1724994640822,-243.0,0.0002098,2]
[336641153,1724994640831,-239.71027327,0.00021,30]
[336641155,1724994640840,-1000.0,0.00021,21]
[336641157,1724994640849,-1000.0,0.00021,11]
[336641159,1724994640858,-1800.0,0.00021095,2]